bitfinex-derivatives/quotes_ETHF0:USTF0_20240917
["timestamp","ask_amount","ask_price","bid_price","bid_amount"]
[1726574781618,3.64038,2311.9,2311.8,1.68258]
[1726574781819,0.43258,2311.9,2311.8,1.25]
[1726574782228,0.43258,2311.9,2311.8,2.4597]
[1726574788328,1.51399,2311.9,2311.8,2.4597]
[1726574789725,0.43258,2311.9,2311.6,1.13383307]
[1726574789917,1.5141,2311.7,2311.6,1.13383307]
[1726574790122,0.43262,2311.6,2311.5,5.19965307]
[1726574791620,0.43262,2311.6,2311.5,6.81351469]
[1726574791825,0.43262,2311.6,2311.5,6.81354811]
[1726574792019,0.43262,2311.6,2311.5,6.81355316]
[1726574792329,0.43262,2311.6,2311.5,5.19965307]
[1726574792826,0.43262,2311.6,2311.5,6.81381949]
[1726574793022,0.43262,2311.6,2311.5,3.60601949]
[1726574793330,0.43262,2311.6,2311.5,1.99185307]
[1726574793623,0.43262,2311.6,2311.5,4.17293762]
[1726574794224,0.4326,2311.7,2311.6,0.43262]
[1726574794417,0.99566641,2312.0,2311.6,8.8914291]
[1726574794725,0.53351,2312.2,2312.1,0.43252]
[1726574794921,0.43251,2312.2,2312.1,1.68252]
[1726574795128,0.43251,2312.2,2312.1,2.81531268]
[1726574796217,0.43251,2312.2,2312.1,1.68252]
[1726574801333,1.08123,2312.3,2312.1,1.68252]
[1726574801334,0.4325,2312.3,2312.2,0.43251]
[1726574801636,0.43249,2312.3,2312.2,0.43251]
[1726574802030,1.08118,2312.4,2312.1,1.68251]
[1726574802236,1.08122,2312.3,2312.0,1.69684]
[1726574802531,0.43252,2312.2,2312.0,2.94684]
[1726574803332,0.43251,2312.2,2312.1,1.25]
[1726574806831,0.83879,2312.3,2312.1,1.25]
[1726574807037,0.43249,2312.3,2312.2,1.68251]
[1726574807241,0.43249,2312.3,2312.2,1.25]
[1726574807736,4.28894,2312.5,2312.2,1.68251]
[1726574807944,4.72139,2312.5,2312.4,1.25]
[1726574808437,1.51359,2312.5,2312.4,1.25]
[1726574809944,0.43245,2312.5,2312.4,1.25]
[1726574813846,1.51358,2312.5,2312.4,1.25]
[1726574817138,1.51358,2312.5,2312.4,2.061]
[1726574819543,1.51358,2312.5,2312.4,1.25]
[1726574819848,0.43247,2312.4,2312.3,0.4122]
[1726574820047,1.51365,2312.4,2312.3,0.4122]
[1726574820250,0.43249,2312.3,2312.2,1.68251]
[1726574820645,1.51371,2312.3,2312.2,1.25]
[1726574821148,1.25,2312.3,2311.5,0.117]
[1726574821452,4.443,2312.4,2311.7,1.6663]
[1726574821453,0.43258,2311.8,2311.7,1.6663]
[1726574821749,0.43264,2311.5,2311.3,1.56546268]
[1726574821946,0.81992,2311.7,2311.4,1.68265]
[1726574822149,0.81991,2311.7,2311.6,1.25]
[1726574822664,0.43261,2311.7,2311.6,1.25]
[1726574823954,0.4326,2311.7,2311.6,1.25]
[1726574824357,4.152,2312.0,2311.6,1.25]
[1726574824547,0.43257,2311.9,2311.8,1.25]
[1726574824748,0.43257,2311.9,2311.8,1.6409]
[1726574825444,0.43256,2312.0,2311.8,2.0473]
[1726574825645,0.43256,2311.9,2311.8,2.0473]
[1726574829152,0.43256,2311.9,2311.8,2.47988]
[1726574829358,0.43256,2311.9,2311.8,2.0473]
[1726574831659,0.43256,2311.9,2311.8,2.47988]
[1726574832752,0.43256,2311.9,2311.8,2.0473]
[1726574833063,0.43259,2311.8,2311.7,1.25]
[1726574833264,1.51397,2311.9,2311.8,1.6761]
[1726574836663,1.93007,2311.9,2311.8,1.6761]
[1726574837557,0.43256,2311.9,2311.8,2.10868]
[1726574837958,0.43256,2311.9,2311.8,1.6761]
[1726574839563,1.51397,2311.9,2311.8,1.6761]
[1726574840664,1.51404,2311.8,2311.7,1.6676]
[1726574840961,2.30674,2311.8,2311.7,1.25]
[1726574841463,2.30674,2311.8,2311.7,1.6826]
[1726574841861,2.30674,2311.8,2311.7,1.25]
[1726574842564,1.90314,2311.8,2311.7,1.6826]
[1726574842864,1.51404,2311.8,2311.7,1.6826]
[1726574844364,1.51404,2311.8,2311.7,1.25]
[1726574845659,0.4326,2311.7,2311.6,1.6826]
[1726574850366,0.4326,2311.7,2311.6,2.81539268]
[1726574851070,0.4326,2311.7,2311.6,1.6826]
[1726574851872,0.4326,2311.7,2311.6,2.81539268]
[1726574852358,0.4326,2311.7,2311.6,1.6826]
[1726574852557,0.4326,2311.8,2311.7,0.43258]
[1726574852764,0.4326,2311.8,2311.7,1.68258]
[1726574854375,0.4326,2311.7,2311.6,2.81540268]
[1726574854569,0.8274,2311.7,2311.6,1.68261]
[1726574855870,1.51417,2311.6,2311.5,0.3958]
[1726574856069,1.51429,2311.4,2311.3,0.4195]
[1726574856779,1.51436,2311.3,2311.2,0.4126]
[1726574857080,1.92446,2311.3,2311.2,0.4126]
[1726574859269,1.92446,2311.3,2311.2,1.6626]
[1726574859474,1.92446,2311.3,2311.2,2.09529]
[1726574859669,0.84277,2311.3,2311.2,2.09529]
[1726574859870,0.43267,2311.3,2311.2,2.09529]
[1726574860077,4.0294,2311.7,2311.2,5.989]
[1726574860282,0.4326,2311.7,2311.6,1.68262]
[1726574860571,4.152,2312.0,2311.6,1.25]
[1726574860767,0.43255,2312.0,2311.9,1.68254]
[1726574861178,0.43253,2312.1,2312.0,0.43253]
[1726574861368,0.43253,2312.1,2312.0,0.43254]
[1726574861369,0.43254,2312.1,2312.0,0.43254]
[1726574861676,0.4325,2312.3,2312.1,0.43252]
[1726574861874,0.4325,2312.3,2312.2,1.6422]
[1726574862066,0.43248,2312.4,2312.2,2.4993]
[1726574862271,0.3986,2312.5,2312.3,1.25]
[1726574862272,0.43247,2312.5,2312.3,1.25]
[1726574862775,0.43247,2312.4,2312.3,1.25]
[1726574863868,0.43249,2312.3,2312.2,4.64959268]
[1726574864477,0.43249,2312.3,2312.2,3.5168]
[1726574865278,0.43249,2312.3,2312.2,4.64959268]
[1726574865484,0.43249,2312.3,2312.2,3.5168]
[1726574866481,0.43251,2312.2,2312.1,1.13279268]
[1726574866681,0.43251,2312.2,2312.0,1.13279268]
[1726574866877,0.43252,2312.1,2312.0,1.13279268]
[1726574867076,0.43252,2312.1,2312.0,2.76949568]
[1726574867378,1.51384,2312.1,2312.0,1.13279268]
[1726574867582,0.43254,2312.0,2311.9,0.784]
[1726574868273,0.43254,2312.0,2311.9,3.484]
[1726574868568,0.43254,2312.0,2311.9,4.61679268]
[1726574868776,0.43254,2312.1,2311.9,3.91656]
[1726574868973,0.43252,2312.2,2312.0,3.13254]
[1726574869676,4.28899,2312.4,2312.1,0.43252]
[1726574869877,4.28899,2312.4,2312.0,3.13253]
[1726574869878,0.43252,2312.2,2312.0,3.13253]
[1726574870283,0.43249,2312.3,2312.0,2.7]
[1726574870481,0.43249,2312.3,2312.2,2.7]
[1726574872982,0.43252,2312.1,2311.9,3.484]
[1726574873189,0.43252,2312.1,2312.0,0.43254]
[1726574874778,0.43254,2312.0,2311.9,3.484]
[1726574875174,0.43254,2312.0,2311.9,3.91656]
[1726574875382,0.43254,2312.0,2311.9,3.91655]
[1726574875783,0.43254,2312.0,2311.9,0.784]
[1726574875990,0.43254,2312.0,2311.7,0.84579]
[1726574875991,0.43258,2311.8,2311.7,0.84579]
[1726574876184,0.43258,2311.8,2311.7,0.8249]
[1726574876385,0.4326,2311.7,2311.6,0.3971]
[1726574876581,0.4326,2311.7,2311.6,0.82972]
[1726574876884,0.3956,2311.8,2311.6,0.82972]
[1726574877189,0.4326,2311.7,2311.6,0.82972]
[1726574877591,0.4326,2311.7,2311.6,0.3971]
[1726574877788,0.4326,2311.7,2311.6,0.82972]
[1726574880293,0.4326,2311.8,2311.7,0.4326]
[1726574881403,0.4326,2311.7,2311.6,3.52972]
[1726574883492,0.43259,2311.8,2311.7,0.4326]
[1726574883897,0.43258,2311.8,2311.6,4.66249268]
[1726574884108,0.43258,2311.8,2311.7,0.4326]
[1726574885498,0.43258,2311.8,2311.7,1.56539268]
[1726574887706,0.43258,2311.9,2311.8,0.43258]
[1726574887906,1.08137,2312.0,2311.8,2.7]
[1726574888407,0.43254,2312.1,2312.0,0.43254]
[1726574888711,0.43252,2312.1,2312.0,3.13253]
[1726574889506,5.33422,2312.4,2312.0,2.7]
[1726574889507,5.3342,2312.4,2312.0,2.7]
[1726574889818,0.43248,2312.4,2312.3,0.43248]
[1726574890305,0.43246,2312.5,2312.3,0.43247]
[1726574890508,0.43246,2312.5,2312.1,1.52129268]
[1726574890509,0.43246,2312.5,2312.4,3.13247]
[1726574890704,0.43246,2312.5,2312.4,2.7]
[1726574891611,0.43246,2312.5,2312.4,3.13247]
[1726574892113,5.1022,2312.8,2312.4,2.7]
[1726574892410,5.1022,2312.8,2312.4,3.13246]
[1726574892610,0.43245,2312.5,2312.4,2.7]
[1726574892907,0.43245,2312.5,2312.4,3.13247]
[1726574894209,0.43245,2312.5,2312.4,2.7]
[1726574895911,0.43245,2312.6,2312.4,3.13247]
[1726574896213,5.10222,2312.8,2312.4,3.13247]
[1726574896214,0.43245,2312.5,2312.4,2.7]
[1726574896412,0.43244,2312.6,2312.5,0.43245]
[1726574896607,0.43244,2312.6,2312.5,0.4211]
[1726574897008,0.43244,2312.6,2312.5,0.85355]
[1726574897303,0.43243,2312.7,2312.5,0.85353]
[1726574897502,3.6026,2312.8,2312.6,3.55732]
[1726574897503,3.2078,2312.8,2312.6,3.55732]
[1726574897730,0.43241,2312.7,2312.6,3.55732]
[1726574897906,3.2078,2312.8,2312.7,0.43241]
[1726574898107,3.2078,2312.8,2312.7,3.13241]
[1726574898714,4.28867,2313.1,2312.8,0.43239]
[1726574899018,0.43237,2312.9,2312.8,0.4223]
[1726574900016,1.08094,2312.9,2312.6,3.55733]
[1726574900211,0.43241,2312.7,2312.6,3.5472]
[1726574900516,0.3921,2312.8,2312.6,3.97963]
[1726574900517,0.4324,2312.8,2312.6,3.97963]
[1726574900710,0.4324,2312.8,2312.7,0.43241]
[1726574901312,0.43238,2312.9,2312.7,0.43241]
[1726574901510,0.43238,2312.9,2312.7,3.13241]
[1726574901911,0.43239,2312.8,2312.7,3.13241]
[1726574902617,0.43239,2312.9,2312.7,3.13241]
[1726574902810,0.3921,2313.0,2312.7,3.13241]
[1726574903013,0.43239,2312.8,2312.7,3.13241]
[1726574904109,0.43239,2312.9,2312.7,2.7]
[1726574904318,0.43239,2312.9,2312.8,0.43239]
[1726574904615,0.43237,2312.9,2312.8,0.43239]
[1726574904820,3.2078,2313.1,2312.9,0.43236]
[1726574905016,0.43235,2313.1,2313.0,0.3953]
[1726574905225,0.43235,2313.1,2313.0,1.21436]
[1726574905415,0.43235,2313.1,2313.0,1.60726]
[1726574905714,0.43235,2313.1,2313.0,1.1749]
[1726574906314,0.43235,2313.1,2313.0,0.782]
[1726574906315,1.5132,2313.1,2313.0,0.782]
[1726574907025,0.43235,2313.1,2313.0,0.782]
[1726574908007,1.5132,2313.1,2313.0,0.782]
[1726574911219,1.5132,2313.1,2313.0,0.3953]
[1726574923622,1.0809,2313.0,2312.4,0.101]
[1726574923829,0.43245,2312.6,2312.5,0.8174]
[1726574924622,0.43245,2312.6,2312.5,1.24985]
[1726574925526,0.43245,2312.6,2312.5,3.94985]
[1726574928433,0.43243,2312.7,2312.6,0.43242]
[1726574928626,0.43241,2312.8,2312.7,0.43241]
[1726574930031,0.43239,2312.8,2312.7,0.43241]
[1726574930931,0.43239,2312.9,2312.8,0.43239]
[1726574931133,0.43239,2312.9,2312.8,3.0969]
[1726574931438,0.43239,2312.9,2312.8,3.52929]
[1726574931635,0.43239,2312.9,2312.8,3.0969]
[1726574932437,0.43237,2313.0,2312.9,0.43237]
[1726574932738,8.4406,2313.2,2312.9,3.54416]
[1726574932942,4.2886,2313.2,2312.9,3.1118]
[1726574933239,4.2886,2313.2,2313.0,0.43235]
[1726574933433,4.72092,2313.2,2313.1,2.7]
[1726574936233,1.51312,2313.2,2313.1,2.7]
[1726574939143,0.43237,2312.9,2312.8,1.56517268]
[1726574939439,0.43237,2313.0,2312.9,0.43237]
[1726574939740,0.43237,2313.0,2312.9,3.13237]
[1726574940337,0.43237,2313.0,2312.9,2.7]
[1726574942246,1.51327,2313.0,2312.9,2.7]
[1726574942436,1.51327,2313.0,2312.9,3.83279268]
[1726574942639,1.51327,2313.0,2312.9,2.7]
[1726574942941,2.56989817,2313.3,2312.9,8.15599268]
[1726574943133,1.38812817,2313.3,2313.1,2.7]
[1726574943335,1.51312,2313.2,2313.1,2.7]
[1726574943542,0.43236,2313.0,2312.9,3.83279268]
[1726574944142,0.43236,2313.0,2312.9,2.7]
[1726574944143,1.51326,2313.0,2312.9,2.7]
[1726574944738,0.43239,2312.8,2312.7,1.2292]
[1726574946035,0.43239,2312.8,2312.7,2.4792]
[1726574946434,0.43239,2312.8,2312.7,2.0468]
[1726574946641,1.51338,2312.8,2312.7,1.68241]
[1726574946842,0.43243,2312.7,2312.6,1.25]
[1726574947046,0.43241,2312.7,2312.6,1.68241]
[1726574947747,0.4324,2312.8,2312.7,0.4324]
[1726574948044,0.4324,2312.8,2312.7,1.6824]
[1726574950135,0.85778,2312.9,2312.8,0.43239]
[1726574950339,0.43238,2312.9,2312.8,0.43239]
[1726574950552,0.43239,2312.8,2312.7,2.38279268]
[1726574950847,1.0809,2313.0,2312.8,0.43238]
[1726574950848,0.43239,2312.9,2312.8,0.43238]
[1726574951148,0.43239,2312.9,2312.8,4.59369142]
[1726574952249,0.43239,2312.9,2312.8,5.02603663]
[1726574952443,0.43237,2313.0,2312.9,0.43237]
[1726574952643,0.43237,2313.0,2312.9,5.41604291]
[1726574953549,0.43237,2313.0,2312.9,4.84907598]
[1726574953742,0.43237,2313.0,2312.9,5.41604291]
[1726574953943,0.43237,2313.0,2312.9,4.849085]
[1726574954145,0.43237,2313.0,2312.9,6.55011462]
[1726574954349,0.43237,2313.0,2312.9,4.84906475]
[1726574954849,0.43237,2313.0,2312.9,5.41604291]
[1726574955053,0.43237,2313.0,2312.9,4.84906423]
[1726574955248,0.43237,2313.0,2312.9,5.41604291]
[1726574955947,0.43237,2313.0,2312.9,4.98367291]
[1726574956651,0.43237,2313.0,2312.9,2.77374264]
[1726574956848,0.82737,2313.0,2312.9,2.77374264]
[1726574957155,0.82737,2313.0,2312.9,3.20611264]
[1726574957349,0.82737,2313.0,2312.9,2.77374264]
[1726574957645,0.82737,2313.0,2312.9,3.20611264]
[1726574958851,0.43237,2313.0,2312.9,4.84893503]
[1726574959243,0.43237,2313.0,2312.9,2.07207]
[1726574960254,0.43237,2313.0,2312.9,1.6397]
[1726574960645,0.43237,2313.0,2312.9,2.07207]
[1726574966456,0.43237,2313.0,2312.9,3.20611264]
[1726574966856,1.51327,2313.0,2312.9,1.13404264]
[1726574967460,0.43237,2312.9,2312.8,2.81643264]
[1726574967653,0.43237,2312.9,2312.8,4.45893058]
[1726574968357,0.43237,2312.9,2312.8,4.45810265]
[1726574968752,0.43237,2312.9,2312.8,4.44112685]
[1726574969153,0.81837,2312.9,2312.8,4.44112685]
[1726574969557,0.81837,2312.9,2312.8,4.87351685]
[1726574969754,0.43237,2312.9,2312.8,3.23100471]
[1726574969959,0.43237,2312.9,2312.8,4.87351828]
[1726574970750,0.43237,2312.9,2312.8,5.44133319]
[1726574971253,0.43237,2313.0,2312.9,0.43237]
[1726574971453,0.43237,2313.0,2312.9,5.02476793]
[1726574971656,0.43235,2313.1,2312.9,4.59239793]
[1726574971859,0.43235,2313.1,2313.0,1.13315477]
[1726574973057,0.43235,2313.1,2313.0,1.56551477]
[1726574973261,0.43235,2313.1,2313.0,2.77578312]
[1726574973964,2.07571258,2313.3,2313.0,2.77578312]
[1726574974164,0.43232,2313.2,2313.1,3.18815477]
[1726574974355,0.43232,2313.2,2313.1,3.58305477]
[1726574974763,1.51312,2313.2,2313.1,3.58305477]
[1726574977368,1.91572,2313.2,2313.1,3.58305477]
[1726574978367,0.99492258,2313.3,2313.2,1.51312]
[1726574978670,0.101,2313.6,2313.2,7.81083114]
[1726574978869,2.70032,2313.5,2313.4,1.13325092]
[1726574979068,0.43228,2313.4,2313.3,1.13325092]
[1726574979271,1.51299,2313.4,2313.3,1.13325092]
[1726574979572,1.51306,2313.3,2313.2,1.13325092]
[1726574980369,5.83626,2313.3,2313.2,1.13325092]
[1726574980568,1.51312,2313.2,2313.1,1.13325092]
[1726574980872,1.51312,2313.2,2312.7,1.13381895]
[1726574980873,1.08092,2313.0,2312.7,1.13381895]
[1726574981076,0.43243,2312.7,2312.5,1.69955568]
[1726574981373,4.4578,2312.9,2312.4,0.4218]
[1726574981374,0.4035,2312.6,2312.4,0.4218]
[1726574981672,0.83594,2312.6,2312.2,1.6718]
[1726574982470,0.4035,2312.6,2312.4,1.25]
[1726574982772,0.83594,2312.6,2312.4,1.25]
[1726574983973,0.83594,2312.6,2312.3,2.7]
[1726574984876,0.83594,2312.6,2312.4,0.3888]
[1726574985072,0.4035,2312.6,2312.4,0.3888]
[1726574985477,0.83594,2312.6,2312.4,0.3888]
[1726574986078,0.4035,2312.6,2312.4,0.3888]
[1726574986282,0.83594,2312.6,2312.4,0.3888]
[1726574989579,0.4035,2312.6,2312.4,0.3888]
[1726574989882,0.4035,2312.6,2312.4,3.52126]
[1726574990083,0.4035,2312.6,2312.4,3.91536]
[1726574992884,0.3976,2312.7,2312.4,3.91536]
[1726574993382,0.83001,2312.7,2312.4,3.91536]
[1726574993786,0.3976,2312.7,2312.5,0.43244]
[1726574993986,0.3976,2312.7,2312.6,0.4137]
[1726574994187,0.83001,2312.7,2312.6,0.4137]
[1726574994481,0.408,2312.8,2312.6,0.4137]
[1726574994886,0.8404,2312.8,2312.7,0.4228]
[1726574997191,0.3864,2313.0,2312.7,0.4228]
[1726574997382,0.83564,2313.1,2312.8,3.55708]
[1726574997684,0.83565,2313.1,2312.8,3.55709]
[1726574999083,0.4033,2313.1,2312.9,0.43237]
[1726574999285,3.3088,2313.3,2313.1,0.43233]
[1726574999476,3.2078,2313.3,2313.2,3.52062]
[1726574999680,3.2078,2313.3,2313.2,3.0883]
[1726575001785,3.2078,2313.3,2313.2,3.52062]
[1726575003387,3.2078,2313.3,2313.2,3.0883]
[1726575003990,3.2078,2313.3,2313.2,1.6383]
[1726575005290,0.43227,2313.5,2313.3,0.4323]
[1726575005593,0.43228,2313.4,2313.2,1.6383]
[1726575007298,0.43228,2313.4,2313.2,2.07062]
[1726575007797,0.43228,2313.4,2313.2,1.6383]
[1726575008097,0.43228,2313.4,2313.2,2.07061]
[1726575008298,0.43228,2313.4,2313.2,1.6383]
[1726575008797,0.43228,2313.4,2313.2,2.0464]
[1726575009787,0.43227,2313.5,2313.3,0.43229]
[1726575009995,0.43229,2313.4,2313.3,1.25]
[1726575011398,0.43229,2313.4,2313.2,2.0464]
[1726575011399,0.4323,2313.3,2313.2,2.0464]
[1726575011788,0.4323,2313.3,2313.2,1.6383]
[1726575012298,0.8264,2313.3,2313.2,0.3883]
[1726575013509,6.19572,2313.3,2313.2,0.3883]
[1726575013698,0.43234,2313.1,2313.0,0.42]
[1726575013998,0.43234,2313.1,2312.9,0.43236]
[1726575013999,0.43235,2313.1,2312.9,1.68237]
[1726575014204,0.43236,2313.0,2312.9,1.68237]
[1726575014393,0.43235,2313.1,2312.9,1.68237]
[1726575014693,0.43236,2313.0,2312.9,1.25]
[1726575015101,0.43235,2313.1,2312.9,1.68237]
[1726575015402,0.43235,2313.1,2313.0,1.25]
[1726575015599,0.43233,2313.2,2313.0,1.68234]
[1726575015800,0.43234,2313.1,2313.0,1.68234]
[1726575015997,0.43233,2313.2,2313.0,1.68234]
[1726575016194,4.28856,2313.3,2313.0,1.68234]
[1726575016195,0.43234,2313.1,2313.0,1.68234]
[1726575016801,0.43234,2313.1,2313.0,1.68236]
[1726575017295,4.28856,2313.3,2313.0,1.25]
[1726575017505,4.28856,2313.3,2313.2,1.25]
[1726575017704,4.72086,2313.3,2313.2,1.25]
[1726575018005,0.4323,2313.3,2313.2,1.25]
[1726575018498,2.0533,2313.5,2312.6,6.32598872]
[1726575018693,2.0533,2313.5,2312.5,3.34717424]
[1726575018694,0.43236,2313.0,2312.8,2.08568]
[1726575018891,1.08085,2313.1,2312.8,1.6533]
[1726575019093,0.43236,2313.0,2312.8,2.08569]
[1726575019298,0.43236,2313.0,2312.9,1.25]
[1726575021204,0.43236,2313.0,2312.9,1.6572]
[1726575022094,0.4259,2313.2,2312.9,1.6572]
[1726575022296,1.51312,2313.2,2313.1,1.25]
[1726575024301,0.43232,2313.2,2313.1,1.25]
[1726575025892,0.43235,2313.1,2312.9,0.83956]
[1726575026104,0.43235,2313.1,2313.0,1.25]
[1726575028804,0.43235,2313.1,2313.0,1.6663]
[1726575033105,1.5132,2313.1,2313.0,1.6663]
[1726575033309,1.51326,2313.0,2312.9,0.4072]
[1726575033603,5.13226,2313.0,2312.9,0.4072]
[1726575034410,7.46316,2313.0,2312.9,0.4072]
[1726575034911,6.21316,2313.0,2312.9,0.4072]
[1726575036905,5.13226,2313.0,2312.9,0.4072]
[1726575038603,7.9422,2313.0,2312.6,1.652]
[1726575038819,0.43241,2312.7,2312.6,1.652]
[1726575039902,0.43243,2312.6,2312.5,0.8075]
[1726575040098,2.76351,2312.6,2312.5,0.3846]
[1726575040318,3.56501,2312.6,2312.5,0.3846]
[1726575040500,2.31501,2312.6,2312.5,0.3846]
[1726575042011,1.23393,2312.6,2312.5,0.3846]
[1726575045708,2.31501,2312.6,2312.5,0.3846]
[1726575046217,0.43247,2312.4,2312.3,0.4038]
[1726575047014,0.43247,2312.4,2312.3,1.6538]
[1726575048413,0.43246,2312.5,2312.3,1.6538]
[1726575049022,1.88258,2312.6,2312.3,1.6538]
[1726575049023,0.43247,2312.4,2312.3,1.6538]
[1726575051221,3.2078,2312.4,2312.1,0.8371]
[1726575051429,0.4325,2312.3,2312.2,0.4136]
[1726575053325,1.51372,2312.3,2312.2,0.4136]
[1726575053821,0.43251,2312.2,2312.1,0.8371]
[1726575054021,4.26625,2312.2,2312.1,0.4144]
[1726575054221,8.59105,2312.2,2312.1,0.4144]
[1726575055327,7.34105,2312.2,2312.1,0.4144]
[1726575055817,8.59105,2312.2,2312.1,0.4144]
[1726575057123,8.59105,2312.2,2311.8,0.8215]
[1726575057124,0.43256,2311.9,2311.8,0.8215]
[1726575057920,2.76397,2311.9,2311.8,0.4136]
[1726575058121,1.51397,2311.9,2311.8,0.4136]
[1726575062420,0.43256,2311.9,2311.8,1.6636]
[1726575067522,1.51397,2311.9,2311.8,1.6636]
[1726575068623,0.43256,2311.9,2311.8,1.6636]
[1726575070226,0.43256,2311.9,2311.8,2.09618]
[1726575070830,0.43256,2311.9,2311.8,1.6636]
[1726575073027,0.43255,2312.0,2311.9,0.43255]
[1726575073219,0.43254,2312.0,2311.9,2.08386]
[1726575073621,0.43254,2312.0,2311.9,6.40946]
[1726575074221,0.43254,2312.0,2311.9,2.08386]
[1726575074624,0.43254,2312.0,2311.9,6.40946]
[1726575076130,0.43254,2312.0,2311.9,2.08386]
[1726575076529,1.5139,2312.0,2311.9,0.4013]
[1726575076928,0.43254,2312.0,2311.9,0.4013]
[1726575077433,1.5139,2312.0,2311.9,0.4013]
[1726575078419,0.43254,2312.0,2311.9,0.4013]
[1726575079632,0.43254,2312.0,2311.9,1.6513]
[1726575081037,1.08131,2312.2,2311.9,2.08386]
[1726575081332,0.43252,2312.1,2312.0,0.4158]
[1726575085343,4.72164,2312.1,2312.0,0.4158]
[1726575087438,3.64032,2312.1,2312.0,0.4158]
[1726575087633,4.72164,2312.1,2312.0,0.4158]
[1726575093943,5.68246942,2312.1,2312.0,0.4158]
[1726575097456,0.96082942,2312.1,2312.0,0.4158]
[1726575097644,0.43252,2312.1,2312.0,0.84834]
[1726575097847,0.43252,2312.1,2312.0,0.4158]
[1726575099267,0.43252,2312.1,2312.0,6.42314]
[1726575099447,0.43252,2312.2,2312.0,5.9906]
[1726575099646,0.43252,2312.2,2312.1,0.4057]
[1726575099845,0.43252,2312.2,2312.1,0.8081]
[1726575102053,0.43252,2312.2,2312.1,1.94307746]
[1726575102250,0.43252,2312.2,2312.1,2.37559746]
[1726575102557,0.43252,2312.2,2312.1,3.19307746]
[1726575104753,0.43252,2312.2,2312.1,5.28885364]
[1726575104941,0.43252,2312.2,2312.1,3.19307746]
[1726575105354,0.43252,2312.2,2312.1,3.62559746]
[1726575105654,0.4325,2312.3,2312.2,0.43251]
[1726575105952,0.4325,2312.3,2312.2,4.48057358]
[1726575106148,0.43246,2312.5,2312.4,0.43246]
[1726575106357,0.43246,2312.5,2312.4,2.81727622]
[1726575106550,2.45106942,2312.7,2312.4,5.04735889]
[1726575106742,0.43245,2312.6,2312.5,1.51925606]
[1726575106942,0.43245,2312.6,2312.5,1.91965606]
[1726575108445,0.43245,2312.6,2312.5,0.7852]
[1726575108650,0.43245,2312.6,2312.5,1.91965606]
[1726575109144,0.43245,2312.6,2312.5,0.7852]
[1726575109649,0.43243,2312.7,2312.5,5.54165]
[1726575109849,3.2078,2312.8,2312.6,1.25]
[1726575110055,0.43241,2312.7,2312.6,1.25]
[1726575112158,0.43241,2312.8,2312.6,1.68243]
[1726575112351,0.43241,2312.7,2312.6,1.68243]
[1726575112550,0.4324,2312.8,2312.6,1.68243]
[1726575113057,0.43239,2312.9,2312.7,0.43241]
[1726575113247,0.43239,2312.9,2312.8,1.6745]
[1726575113955,0.96082942,2313.0,2312.8,1.6745]
[1726575113956,0.96082942,2313.0,2312.8,5.9985]
[1726575114253,1.08069,2313.5,2313.1,0.43234]
[1726575114254,0.101,2313.4,2313.1,0.43234]
[1726575114450,0.4323,2313.3,2313.2,1.6745]
[1726575115253,0.4323,2313.3,2313.2,0.4245]
[1726575119261,0.43234,2313.1,2313.0,0.4016]
[1726575119861,0.4134,2313.2,2313.0,0.4016]
[1726575119862,0.84573,2313.2,2313.0,0.4016]
[1726575120460,0.4134,2313.2,2313.0,0.4016]
[1726575121458,0.84574,2313.2,2313.0,0.4016]
[1726575121663,0.43231,2313.3,2313.0,0.83394]
[1726575121961,0.43232,2313.2,2313.0,0.83394]
[1726575122153,0.43232,2313.2,2313.1,1.25]
[1726575123258,0.43231,2313.3,2313.1,1.68233]
[1726575123451,0.43231,2313.3,2313.2,1.25]
[1726575123653,0.43229,2313.4,2313.2,1.68231]
[1726575123962,0.84567,2313.5,2313.3,0.7755]
[1726575124160,0.43228,2313.4,2313.3,1.1966]
[1726575124757,0.84568,2313.5,2313.3,1.1966]
[1726575124961,0.4134,2313.5,2313.3,1.1966]
[1726575125161,0.43228,2313.4,2313.3,1.1966]
[1726575125359,0.43228,2313.5,2313.3,1.1966]
[1726575126062,0.43228,2313.4,2313.3,1.1966]
[1726575127558,1.68228,2313.4,2313.3,1.1966]
[1726575127869,1.68228,2313.4,2313.3,0.3848]
[1726575128164,2.76299,2313.4,2313.3,0.3848]
[1726575128364,3.16099,2313.4,2313.3,0.3848]
[1726575129052,0.43235,2313.1,2312.9,1.25]
[1726575129258,0.43235,2313.1,2312.9,1.6399]
[1726575130352,0.3854,2313.2,2312.9,1.6399]
[1726575130353,0.81773,2313.2,2312.9,1.6399]
[1726575130962,0.81773,2313.2,2312.9,2.07227]
[1726575131261,0.81773,2313.2,2312.9,1.6399]
[1726575131465,0.3854,2313.2,2312.9,0.3899]
[1726575131759,0.43235,2313.1,2312.9,0.3899]
[1726575132453,0.43235,2313.1,2312.9,1.6399]
[1726575133054,0.3854,2313.2,2313.0,1.25]
[1726575133255,0.43235,2313.1,2313.0,1.25]
[1726575134170,0.43236,2313.0,2312.9,0.3899]
[1726575134755,0.43235,2313.1,2312.9,0.3899]
[1726575135363,0.3854,2313.2,2312.9,0.3899]
[1726575135562,0.43235,2313.1,2312.9,0.3899]
[1726575135963,0.43236,2313.0,2312.9,0.3899]
[1726575136165,0.43235,2313.1,2312.9,0.3899]